bitfinex/quotes_BTCUSD_20240818
["timestamp","ask_amount","ask_price","bid_price","bid_amount"]
[1723993981455,0.002825,59874.0,59873.0,1.35253113]
[1723993981663,0.002825,59874.0,59873.0,1.37922992]
[1723993981858,0.002825,59874.0,59873.0,1.35253113]
[1723993982060,0.002825,59874.0,59873.0,1.37922992]
[1723993982868,0.002825,59874.0,59873.0,1.14540192]
[1723993983187,0.065525,59874.0,59873.0,1.14540192]
[1723993983625,0.065525,59874.0,59873.0,1.37922992]
[1723993984525,0.065525,59874.0,59873.0,0.86294859]
[1723993984594,0.065525,59874.0,59873.0,0.97184738]
[1723993984945,0.065525,59874.0,59873.0,0.9718477]
[1723993984946,0.146425,59874.0,59873.0,0.9718477]
[1723993985287,0.146425,59874.0,59873.0,0.9688477]
[1723993986692,0.146425,59874.0,59873.0,0.4199917]
[1723993986899,0.146425,59874.0,59873.0,0.39329275]
[1723993987283,0.146425,59874.0,59873.0,0.372742]
[1723993987482,0.146425,59874.0,59873.0,0.62712364]
[1723993988286,0.146425,59874.0,59873.0,0.39329564]
[1723993988715,0.146425,59874.0,59873.0,0.62712364]
[1723993988931,0.146425,59874.0,59873.0,0.70832364]
[1723993992958,0.146425,59874.0,59873.0,0.68777]
[1723993993254,0.146425,59874.0,59873.0,0.70832305]
[1723993995017,0.146425,59874.0,59873.0,0.62712305]
[1723993997179,0.146425,59874.0,59873.0,0.62712313]
[1723993999141,0.146425,59874.0,59873.0,0.6271231]
[1723994000057,0.146425,59874.0,59873.0,0.8609511]
[1723994000277,0.146425,59874.0,59873.0,0.7083231]
[1723994001277,0.146425,59874.0,59873.0,0.6271231]
[1723994004051,0.146425,59874.0,59873.0,0.022]
[1723994005320,0.145425,59874.0,59873.0,0.011]
[1723994005667,0.150425,59874.0,59873.0,0.011]
[1723994006291,0.145425,59874.0,59873.0,0.011]
[1723994006509,0.147425,59874.0,59873.0,0.011]
[1723994006891,0.1419,59873.0,59871.0,0.116917]
[1723994007094,0.002825,59874.0,59869.0,0.233842]
[1723994007095,0.1419,59872.0,59870.0,0.233839]
[1723994007296,0.1419,59872.0,59871.0,0.116918]
[1723994007880,0.131879,59872.0,59871.0,0.350754]
[1723994009969,0.131879,59872.0,59871.0,0.58559]
[1723994010184,0.131879,59872.0,59871.0,0.819426]
[1723994010386,0.131879,59872.0,59871.0,0.83997975]
[1723994012995,0.131879,59872.0,59871.0,0.58559]
[1723994014069,0.131879,59872.0,59871.0,0.60614416]
[1723994017467,0.131879,59872.0,59871.0,0.58559]
[1723994017712,0.131879,59872.0,59871.0,0.6061432]
[1723994021809,0.131879,59872.0,59871.0,0.58559]
[1723994021881,0.131879,59872.0,59871.0,0.60614375]
[1723994022343,0.131879,59872.0,59871.0,0.60614402]
[1723994023862,0.131879,59872.0,59871.0,0.65614402]
[1723994025376,0.131879,59872.0,59871.0,0.65705152]
[1723994025723,0.132704,59872.0,59871.0,0.65705152]
[1723994026020,0.132704,59872.0,59871.0,0.65705161]
[1723994027861,0.132704,59872.0,59871.0,0.70705161]
[1723994029248,0.132704,59872.0,59871.0,0.47321561]
[1723994030081,0.132704,59872.0,59871.0,0.47321567]
[1723994031027,0.132704,59872.0,59871.0,0.1019075]
[1723994031237,0.132704,59872.0,59864.0,0.07516977]
[1723994031238,0.0665,59869.0,59864.0,0.233862]
[1723994031404,0.000825,59872.0,59866.0,0.116927]
[1723994031405,0.0761,59867.0,59866.0,0.116927]
[1723994031613,0.1426,59867.0,59866.0,0.13748192]
[1723994031805,0.1426,59867.0,59866.0,0.02055492]
[1723994032874,0.0771,59867.0,59866.0,0.02755615]
[1723994032992,0.1436,59867.0,59866.0,0.007]
[1723994033875,0.1454,59869.0,59864.0,0.11693]
[1723994034130,0.0636,59869.0,59866.0,0.003]
[1723994034406,0.0818,59868.0,59864.0,0.12093]
[1723994034621,0.082025,59872.0,59864.0,0.11693]
[1723994034622,0.0636,59867.0,59864.0,0.11693]
[1723994034813,0.082025,59872.0,59864.0,0.11693]
[1723994034814,0.0636,59865.0,59864.0,0.11693]
[1723994034984,0.0636,59865.0,59864.0,0.02055648]
[1723994034985,0.1454,59865.0,59864.0,0.02055648]
[1723994035183,0.1454,59865.0,59864.0,0.116931]
[1723994035404,0.0818,59865.0,59862.0,0.233867]
[1723994035627,0.1454,59864.0,59863.0,0.13748964]
[1723994036930,0.1454,59864.0,59863.0,0.14148964]
[1723994037274,0.1454,59864.0,59863.0,0.37535664]
[1723994038299,0.14499795,59864.0,59863.0,0.37535635]
[1723994038700,0.14499795,59864.0,59863.0,0.37835635]
[1723994038901,0.14499795,59864.0,59863.0,0.37926385]
[1723994039663,0.14499795,59864.0,59863.0,0.3587075]
[1723994039860,0.14499795,59864.0,59863.0,0.3792639]
[1723994040129,0.14499795,59864.0,59863.0,0.3587075]
[1723994040410,0.14499795,59864.0,59863.0,0.37926389]
[1723994041461,0.14499795,59864.0,59863.0,0.37926383]
[1723994042200,0.14499795,59864.0,59863.0,0.14539683]
[1723994042401,0.14499795,59864.0,59863.0,0.37926383]
[1723994043022,0.14499795,59864.0,59863.0,0.14539683]
[1723994043229,0.14499795,59864.0,59863.0,0.37926383]
[1723994043420,0.14499795,59864.0,59863.0,0.14539683]
[1723994043624,0.14499795,59864.0,59863.0,0.1248405]
[1723994044024,0.14499795,59864.0,59863.0,0.3587075]
[1723994046767,0.14499795,59864.0,59863.0,0.37926362]
[1723994049397,0.14499795,59864.0,59863.0,0.61313062]
[1723994050349,0.14499795,59864.0,59863.0,0.61313047]
[1723994051331,0.14499795,59864.0,59863.0,0.69433047]
[1723994051948,0.0601,59868.0,59867.0,0.233851]
[1723994052216,0.0601,59868.0,59867.0,0.68638297]
[1723994053696,0.0631,59868.0,59867.0,0.68638297]
[1723994054482,0.0611,59868.0,59867.0,0.68638297]
[1723994054902,0.0621,59868.0,59867.0,0.69238297]
[1723994055115,0.0611,59868.0,59867.0,0.69238297]
[1723994055569,0.0621,59868.0,59867.0,0.70038297]
[1723994056716,0.0611,59868.0,59867.0,0.69438297]
[1723994057176,0.0611,59868.0,59867.0,0.93523397]
[1723994057177,0.0621,59868.0,59867.0,0.93523397]
[1723994058505,0.0621,59868.0,59867.0,0.9352328]
[1723994058833,0.002,59868.0,59867.0,0.9352328]
[1723994059280,0.002,59868.0,59867.0,0.914678]
[1723994059498,0.002,59868.0,59867.0,0.9352328]
[1723994062003,0.002,59868.0,59867.0,0.98534572]
[1723994062251,0.002,59868.0,59867.0,0.9352328]
[1723994062612,0.002,59868.0,59867.0,1.28004102]
[1723994062861,0.002,59868.0,59867.0,1.74990365]
[1723994063017,0.002,59868.0,59867.0,1.83892813]
[1723994063200,0.002,59868.0,59867.0,2.21738976]
[1723994063420,0.002,59868.0,59867.0,2.17477913]
[1723994063610,0.002,59868.0,59867.0,3.93642921]
[1723994063786,0.002,59868.0,59867.0,4.47121824]
[1723994064164,0.000825,59872.0,59871.0,1.055262]
[1723994064376,0.000825,59872.0,59871.0,1.91576113]
[1723994065432,0.000825,59872.0,59871.0,2.04093959]
[1723994066026,0.000825,59872.0,59871.0,2.04193959]
[1723994066231,0.001825,59872.0,59871.0,2.04893959]
[1723994066436,0.001825,59872.0,59871.0,2.04493959]
[1723994066624,0.001825,59872.0,59871.0,1.90955758]
[1723994066869,0.001825,59872.0,59871.0,1.91975425]
[1723994067027,0.001825,59872.0,59871.0,1.92469401]
[1723994067224,0.001825,59872.0,59871.0,2.01559423]
[1723994069495,0.001825,59872.0,59871.0,1.91749184]
[1723994070544,0.001825,59872.0,59871.0,1.99452983]
[1723994071052,0.001825,59872.0,59871.0,1.94722532]
[1723994071250,0.001825,59872.0,59871.0,1.99452986]
[1723994071568,0.001825,59872.0,59871.0,1.96777589]
[1723994071721,0.001825,59872.0,59871.0,1.99452986]
[1723994072395,0.001825,59872.0,59871.0,1.62395907]
[1723994073539,0.001825,59872.0,59871.0,1.54892108]
[1723994075052,0.001825,59872.0,59871.0,2.02866304]
[1723994075270,0.001825,59872.0,59871.0,1.99890995]
[1723994075461,0.001825,59872.0,59871.0,2.02866127]
[1723994077223,0.001825,59872.0,59871.0,2.26249727]
[1723994077360,0.001825,59872.0,59871.0,2.28751795]
[1723994077538,0.001825,59872.0,59871.0,2.05368195]
[1723994077754,0.001825,59872.0,59871.0,1.9286676]
[1723994078393,0.000825,59872.0,59871.0,2.04758113]
[1723994078713,0.000825,59872.0,59871.0,2.06158113]
[1723994078916,0.000825,59872.0,59871.0,2.05658113]
[1723994079109,0.000825,59872.0,59871.0,2.07058113]
[1723994079263,1e-08,59872.0,59871.0,2.07058113]
[1723994079466,1e-08,59872.0,59871.0,2.0438275]
[1723994079712,1e-08,59872.0,59871.0,2.07057932]
[1723994080316,1e-08,59872.0,59871.0,1.94566579]
[1723994080877,1e-08,59872.0,59871.0,1.94564654]
[1723994081662,1e-08,59872.0,59871.0,2.17948254]
[1723994083930,1e-08,59872.0,59871.0,2.17948251]
[1723994084416,1e-08,59872.0,59871.0,2.27016475]
[1723994084571,1e-08,59872.0,59871.0,2.17948128]
[1723994085367,1e-08,59872.0,59871.0,2.27936354]
[1723994085544,1e-08,59872.0,59871.0,2.30433592]
[1723994085748,1e-08,59872.0,59871.0,2.1794797]
[1723994086998,0.000775,59874.0,59873.0,1.291054]
[1723994087252,0.000775,59874.0,59873.0,2.11448347]
[1723994088414,0.000775,59874.0,59873.0,2.14248347]
[1723994089190,0.000775,59874.0,59873.0,2.21563802]
[1723994089432,0.000775,59874.0,59873.0,2.22963802]
[1723994089638,0.000775,59874.0,59873.0,2.24363802]
[1723994089837,0.000775,59874.0,59873.0,2.22963802]
[1723994090044,0.000775,59874.0,59873.0,2.21562722]
[1723994090262,0.000775,59874.0,59873.0,2.15707481]
[1723994090463,0.000775,59874.0,59873.0,2.23867481]
[1723994091438,0.000775,59874.0,59873.0,2.25267481]
[1723994091672,0.000775,59874.0,59873.0,2.26258317]
[1723994092162,0.000775,59874.0,59873.0,2.26738048]
[1723994092325,0.000775,59874.0,59873.0,2.27658136]
[1723994093337,0.000775,59874.0,59873.0,2.1517369]
[1723994094380,1e-08,59874.0,59873.0,2.1517369]
[1723994095117,1e-08,59874.0,59873.0,2.35782254]
[1723994095301,1e-08,59874.0,59873.0,2.2329369]
[1723994096134,1e-08,59874.0,59873.0,3.7329369]
[1723994096467,1e-08,59874.0,59873.0,3.74882932]
[1723994096866,1e-08,59874.0,59873.0,3.74882967]
[1723994097828,1e-08,59874.0,59873.0,3.74482967]
[1723994098028,1e-08,59874.0,59873.0,3.74882967]
[1723994098227,1e-08,59874.0,59873.0,3.81267963]
[1723994098426,1e-08,59874.0,59873.0,3.80867963]
[1723994099222,1e-08,59874.0,59873.0,3.81267963]
[1723994100568,1e-08,59874.0,59873.0,3.70622835]
[1723994100696,1e-08,59874.0,59873.0,3.83943143]
[1723994101141,1e-08,59874.0,59873.0,3.83543143]
[1723994101557,1e-08,59874.0,59873.0,3.83943143]
[1723994101964,1e-08,59874.0,59873.0,3.83543143]
[1723994102178,1e-08,59874.0,59873.0,3.83943143]
[1723994102582,1e-08,59874.0,59873.0,3.83943394]
[1723994102974,1e-08,59874.0,59873.0,3.83543394]
[1723994103566,1e-08,59874.0,59873.0,3.6605893]
[1723994103637,1e-08,59874.0,59873.0,3.83543394]
[1723994104406,1e-08,59874.0,59873.0,3.95871632]
[1723994104739,1e-08,59874.0,59873.0,4.4814456]
[1723994106286,1e-08,59874.0,59873.0,4.33141172]
[1723994107646,1e-08,59874.0,59873.0,4.25285766]
[1723994107901,1e-08,59874.0,59873.0,4.33141172]
[1723994109368,1e-08,59876.0,59875.0,1.28701]
[1723994109573,1e-08,59876.0,59875.0,2.0281876]
[1723994110008,1e-08,59876.0,59875.0,3.5281876]
[1723994110208,1e-08,59876.0,59875.0,3.61099713]
[1723994110856,1e-08,59876.0,59875.0,3.62499713]
[1723994112217,1e-08,59876.0,59875.0,2.08277102]
[1723994112419,1e-08,59876.0,59875.0,2.13307849]
[1723994112674,1e-08,59876.0,59875.0,3.65607849]
[1723994112887,1e-08,59876.0,59875.0,3.67197102]
[1723994113289,1e-08,59876.0,59875.0,2.17197102]
[1723994113489,1e-08,59876.0,59875.0,2.15607849]
[1723994114046,1e-08,59876.0,59875.0,2.17197102]
[1723994114385,0.00082501,59876.0,59875.0,2.17197102]
[1723994115639,0.00082501,59876.0,59875.0,2.10577102]
[1723994116469,0.00082501,59876.0,59875.0,2.10577063]
[1723994116638,0.00082501,59876.0,59875.0,2.62449496]
[1723994117420,0.00082501,59876.0,59875.0,2.77479977]
[1723994118201,0.000825,59894.0,59875.0,2.77479977]
[1723994118202,0.1427,59889.0,59886.0,1.052996]
[1723994118440,0.077925,59894.0,59893.0,0.353625]
[1723994118842,0.000825,59894.0,59893.0,1.9869194]
[1723994118997,0.000825,59894.0,59893.0,2.93892303]
[1723994119188,0.000825,59894.0,59893.0,3.15677654]
[1723994119388,0.0771,59899.0,59896.0,1.138021]
[1723994119626,0.0771,59899.0,59896.0,2.65013177]
[1723994119829,0.0771,59899.0,59896.0,2.44436903]
[1723994120522,0.0771,59899.0,59896.0,1.84542822]
[1723994120816,0.0771,59899.0,59896.0,1.90971736]
[1723994120823,0.0771,59899.0,59896.0,1.95230572]
[1723994121131,0.0771,59899.0,59896.0,1.99255924]
[1723994121196,0.066425,59897.0,59896.0,2.0311717]
[1723994121405,0.066425,59897.0,59896.0,2.0451717]
[1723994121621,0.066425,59897.0,59896.0,2.0471717]
[1723994121823,0.066425,59897.0,59896.0,2.0491717]
[1723994122192,0.066425,59897.0,59896.0,2.04917397]
[1723994122226,0.066425,59897.0,59896.0,1.89913165]
[1723994122424,0.066425,59897.0,59896.0,1.90546416]
[1723994124246,1e-08,59897.0,59896.0,1.97082846]
[1723994124713,1e-08,59897.0,59896.0,1.88962846]
[1723994124825,1e-08,59897.0,59896.0,1.97082846]
[1723994125347,1e-08,59897.0,59896.0,1.87477025]
[1723994126224,1e-08,59897.0,59896.0,1.87077025]
[1723994127234,1e-08,59897.0,59896.0,1.99565496]
[1723994127438,1e-08,59897.0,59896.0,1.87277025]
[1723994127636,1e-08,59897.0,59896.0,1.87077025]
[1723994127637,0.00082501,59897.0,59896.0,1.87077025]
[1723994128261,0.00082501,59897.0,59896.0,2.03751137]
[1723994128483,0.00082501,59897.0,59896.0,2.0375084]
[1723994128706,0.00082501,59897.0,59896.0,2.03950827]
[1723994128921,0.00015218,59897.0,59896.0,1.87477012]
[1723994129259,0.00015218,59897.0,59896.0,1.99965483]
[1723994129463,0.00015218,59897.0,59896.0,1.87477012]
[1723994129666,0.00015218,59897.0,59896.0,2.30028683]
[1723994130762,0.00015218,59897.0,59896.0,2.28628683]
[1723994131497,0.00015218,59897.0,59896.0,2.17540212]
[1723994131669,0.00015218,59897.0,59896.0,2.17140212]
[1723994132270,0.00015218,59897.0,59896.0,2.17540212]
[1723994132469,0.00015218,59897.0,59896.0,2.17140212]
[1723994132863,0.07725218,59897.0,59896.0,1.8564621]
[1723994132892,0.07725218,59897.0,59896.0,1.9376621]
[1723994133243,0.07725218,59897.0,59896.0,1.90006363]
[1723994133280,0.07725218,59897.0,59896.0,1.97454521]
[1723994133475,0.07725218,59897.0,59896.0,2.27517821]
[1723994133658,0.07725218,59897.0,59896.0,2.04144021]
[1723994134255,0.07725218,59897.0,59896.0,2.0729042]
[1723994134483,0.00015218,59897.0,59896.0,2.0869042]
[1723994134649,0.00015218,59897.0,59896.0,2.1009042]
[1723994134853,0.00015218,59897.0,59896.0,2.3206422]
[1723994135352,0.00015218,59897.0,59896.0,2.3346422]
[1723994136745,0.00015218,59897.0,59896.0,2.33464116]
[1723994138986,0.00015218,59897.0,59896.0,2.29543575]
[1723994139228,0.00015218,59897.0,59896.0,2.33464116]
[1723994139463,0.0612,59903.0,59902.0,0.900202]
[1723994139702,0.0612,59903.0,59902.0,1.19429667]
[1723994139934,0.0612,59903.0,59902.0,1.42801167]
[1723994140172,0.0612,59903.0,59902.0,1.43001167]
[1723994140726,0.0612,59903.0,59902.0,1.40547154]
[1723994140928,0.0612,59903.0,59902.0,1.42147154]
[1723994141170,0.0612,59903.0,59902.0,1.44201167]
[1723994141409,0.0612,59903.0,59902.0,1.44401167]
[1723994142168,0.0612,59903.0,59902.0,1.45801167]
[1723994142395,0.00826,59907.0,59904.0,0.001]
[1723994142396,0.138,59906.0,59904.0,0.001]
[1723994142613,0.138,59906.0,59905.0,0.62384867]
[1723994142875,0.138,59906.0,59905.0,0.85755167]
[1723994143352,0.00826,59907.0,59906.0,0.584247]
[1723994143608,0.08506,59907.0,59906.0,1.01504067]
[1723994143853,0.00826,59907.0,59906.0,1.63973384]
[1723994144093,0.00826,59907.0,59906.0,1.64893075]
[1723994144345,0.00826,59907.0,59906.0,1.65293075]
[1723994144825,0.00826,59907.0,59906.0,1.65292904]
[1723994145425,0.00826,59907.0,59906.0,1.59163306]
[1723994145571,0.00826,59907.0,59906.0,1.65292357]
[1723994145824,0.00826,59907.0,59906.0,1.66692357]
[1723994146832,0.00826,59907.0,59906.0,1.73978425]
[1723994147064,0.00826,59907.0,59906.0,1.68992357]
[1723994147543,0.00826,59907.0,59906.0,1.79636917]
[1723994148564,0.00826,59907.0,59906.0,1.87756917]
[1723994149611,0.00826,59907.0,59906.0,1.90249951]
[1723994150428,0.00826,59907.0,59906.0,2.272822]
[1723994150692,0.00826,59907.0,59906.0,2.268822]
[1723994150856,0.00826,59907.0,59906.0,3.768822]
[1723994151071,0.00826,59907.0,59906.0,3.84852978]
[1723994151253,0.00826,59907.0,59906.0,3.78470603]
[1723994151614,0.00826,59907.0,59906.0,3.87268228]
[1723994152355,0.00826,59907.0,59906.0,3.87668228]
[1723994152860,0.00826,59907.0,59906.0,3.87558102]
[1723994153367,0.00826,59907.0,59906.0,3.77585695]
[1723994154301,0.138,59914.0,59913.0,0.117836]
[1723994154507,0.138,59914.0,59913.0,0.92847952]
[1723994154708,0.138,59914.0,59913.0,1.54569599]
[1723994155694,0.138,59914.0,59913.0,1.55369599]
[1723994155898,0.138,59914.0,59913.0,1.56269599]
[1723994156291,0.138,59914.0,59913.0,1.51282352]
[1723994156952,0.138,59914.0,59913.0,1.52269853]
[1723994157568,0.138,59914.0,59913.0,1.90351246]
[1723994157571,0.138,59914.0,59913.0,1.96778882]
[1723994158367,0.138,59914.0,59913.0,1.89298011]
[1723994159382,0.138,59914.0,59913.0,1.99272506]
[1723994160378,0.138,59914.0,59913.0,1.88210156]
[1723994161302,0.138,59914.0,59913.0,2.00678275]
[1723994162432,0.138,59914.0,59913.0,1.88210156]
[1723994162637,0.138,59914.0,59913.0,1.87290652]
[1723994162853,0.138,59914.0,59913.0,1.88210173]
[1723994163947,0.138,59914.0,59913.0,1.79156207]
[1723994164242,0.138,59914.0,59913.0,1.88210296]
[1723994164754,0.138825,59914.0,59913.0,1.88210296]
[1723994167493,0.138825,59914.0,59913.0,1.94061795]
[1723994168537,0.138825,59914.0,59913.0,1.89381786]
[1723994168798,0.138825,59914.0,59913.0,1.85941751]
[1723994168961,0.138825,59914.0,59913.0,1.88210271]
[1723994169597,0.138825,59914.0,59913.0,1.85583931]
[1723994169800,0.138825,59914.0,59913.0,1.88210344]
[1723994171341,0.138825,59914.0,59913.0,1.98258364]
[1723994171542,0.138825,59914.0,59913.0,1.94061954]
[1723994171746,0.138825,59914.0,59913.0,1.98258494]
[1723994171950,0.138825,59914.0,59913.0,1.94061954]
[1723994172164,0.138825,59914.0,59913.0,1.98258494]
[1723994173421,0.138825,59914.0,59913.0,1.92406949]
[1723994173623,0.138825,59914.0,59913.0,1.06200555]
[1723994173855,0.138825,59914.0,59913.0,0.68252674]
[1723994173976,0.138825,59914.0,59913.0,0.75757316]
[1723994174383,0.138825,59914.0,59913.0,1.12790675]
[1723994174886,0.138825,59914.0,59913.0,1.29572832]
[1723994175091,0.138825,59914.0,59913.0,1.50924826]
[1723994175302,0.138825,59914.0,59913.0,1.74292026]
[1723994175759,0.00825,59934.0,59930.0,0.116802]
[1723994177411,0.00825,59934.0,59930.0,0.117802]
[1723994178184,0.00825,59934.0,59930.0,0.118802]
[1723994178707,0.1406,59933.0,59930.0,0.118802]
[1723994178868,0.00825,59934.0,59930.0,0.118802]
[1723994178869,0.079,59932.0,59930.0,0.118802]
[1723994179068,0.1406,59931.0,59930.0,0.118802]
[1723994179684,0.1406,59931.0,59930.0,0.352407]
[1723994180132,0.1406,59931.0,59930.0,0.117802]
[1723994180334,0.1406,59931.0,59930.0,0.352407]
[1723994180659,0.1406,59931.0,59930.0,0.37294347]
[1723994180861,0.1406,59931.0,59930.0,0.37094347]
[1723994181108,0.1406,59931.0,59930.0,0.37094344]
[1723994181294,0.1406,59931.0,59930.0,0.37294344]
[1723994181674,0.1406,59931.0,59930.0,0.84015344]
[1723994182592,0.1406,59931.0,59930.0,0.86641447]
[1723994183105,0.1406,59931.0,59930.0,0.86541447]
[1723994183515,0.1406,59931.0,59930.0,0.87041447]
[1723994184082,0.1406,59931.0,59930.0,0.86941447]
[1723994184305,0.1406,59931.0,59930.0,0.84915344]
[1723994184662,0.1406,59931.0,59930.0,0.828617]
[1723994184667,0.1406,59931.0,59930.0,0.84915005]
[1723994185225,0.079,59931.0,59930.0,0.84915005]
[1723994185633,0.079,59931.0,59930.0,0.88368863]
[1723994186346,0.079,59931.0,59930.0,0.95375097]
[1723994186553,0.079,59931.0,59930.0,0.88468863]
[1723994186771,0.079,59931.0,59930.0,0.85015005]
[1723994186972,0.079,59931.0,59930.0,0.87868723]
[1723994187168,0.079,59931.0,59930.0,0.85115005]
[1723994187450,0.079,59931.0,59930.0,0.92621239]
[1723994188031,0.079,59931.0,59930.0,0.92620831]
[1723994188583,0.079,59931.0,59930.0,1.27591409]
[1723994188675,0.079,59931.0,59930.0,1.29644662]
[1723994189264,0.0783343,59931.0,59930.0,1.29644662]
[1723994189711,0.00825,59934.0,59933.0,0.583985]
[1723994189839,0.00825,59934.0,59933.0,0.60451753]
[1723994190936,0.00825,59934.0,59933.0,0.60951753]
[1723994191494,0.00825,59934.0,59933.0,0.84311153]
[1723994191689,0.00825,59934.0,59933.0,0.97435496]
[1723994191930,0.00825,59934.0,59933.0,1.29454192]
[1723994192100,0.00825,59934.0,59933.0,1.35532486]
[1723994192364,0.00825,59934.0,59933.0,1.42912961]
[1723994192708,0.00825,59934.0,59933.0,1.52897557]
[1723994193116,0.00825,59934.0,59933.0,1.62633011]
[1723994193229,0.00825,59934.0,59933.0,1.6026776]
[1723994193595,0.00825,59934.0,59933.0,1.63693027]
[1723994194241,0.00825,59934.0,59933.0,1.6106776]
[1723994194442,0.00825,59934.0,59933.0,1.61063687]
[1723994196215,0.00825,59934.0,59933.0,1.57610791]
[1723994196894,0.00825,59934.0,59933.0,1.57610932]
[1723994197025,0.00825,59934.0,59933.0,1.0246618]
[1723994197197,0.00825,59934.0,59933.0,1.49488151]
[1723994197398,0.00825,59934.0,59933.0,1.39486942]
[1723994198013,0.15025,59934.0,59933.0,0.98972088]
[1723994198211,0.23145,59934.0,59933.0,0.03552826]
[1723994198766,0.23145,59934.0,59933.0,0.015]
[1723994199117,0.23145,59934.0,59933.0,0.03553098]
[1723994199937,0.23145,59934.0,59933.0,0.015]
[1723994201308,0.23145,59934.0,59933.0,0.007]
[1723994201514,0.0624,59933.0,59925.0,0.233623]
[1723994201725,0.142,59930.0,59929.0,0.05000748]
[1723994201933,0.2232,59930.0,59929.0,0.02053188]
[1723994203859,0.2232,59930.0,59929.0,0.02153188]
[1723994205083,0.2232,59930.0,59929.0,0.001]
[1723994205205,0.2232,59930.0,59929.0,0.02153232]
[1723994206719,0.2242,59930.0,59929.0,0.02053232]
[1723994206926,0.2252,59930.0,59929.0,0.02053232]
[1723994208114,0.2242,59930.0,59929.0,0.02053232]
[1723994208314,0.2252,59930.0,59929.0,0.02053232]
[1723994209066,0.142,59929.0,59925.0,0.05000748]
[1723994209231,0.0832,59930.0,59929.0,0.02053508]
[1723994209232,0.002,59930.0,59929.0,0.02053508]
[1723994209401,0.0812,59928.0,59925.0,0.05000748]
[1723994209622,0.0812,59928.0,59924.0,0.07501122]
[1723994209623,0.142,59927.0,59926.0,0.02053534]
[1723994209829,0.2232,59927.0,59926.0,0.02053534]
[1723994212367,0.2242,59927.0,59926.0,0.02053534]
[1723994213173,0.2242,59927.0,59926.0,0.02053564]
[1723994213174,0.0822,59927.0,59926.0,0.02053564]
[1723994213382,0.2272,59927.0,59926.0,0.02053564]
[1723994214673,0.2272,59927.0,59926.0,0.02144204]
[1723994214901,0.001,59927.0,59926.0,0.42189815]
[1723994215309,0.001,59927.0,59926.0,0.37187304]
[1723994215491,0.001,59927.0,59926.0,0.44691071]
[1723994216279,0.001,59927.0,59926.0,0.81716759]
[1723994217152,0.001,59927.0,59926.0,0.79663195]
[1723994217405,0.001,59927.0,59926.0,0.81716693]
[1723994217539,0.001,59927.0,59926.0,1.08533052]
[1723994217810,0.0793,59932.0,59931.0,0.1168]
[1723994217952,0.0793,59932.0,59931.0,0.13733498]
[1723994218286,0.0793,59932.0,59931.0,0.37093598]
[1723994219735,0.0793,59932.0,59931.0,0.37193598]
[1723994220350,0.145,59932.0,59931.0,0.02153498]
[1723994220553,0.145,59932.0,59931.0,0.13833498]
[1723994221090,0.145,59932.0,59931.0,0.13833487]
[1723994221932,0.145,59932.0,59931.0,0.37093587]
[1723994222140,0.146,59932.0,59931.0,0.13733487]
[1723994222349,0.146,59932.0,59931.0,0.13933487]
[1723994222551,0.146,59932.0,59931.0,0.13733487]
[1723994222749,0.145,59932.0,59931.0,0.13733487]
[1723994222951,0.145,59932.0,59931.0,0.13833487]
[1723994223314,0.145,59932.0,59931.0,0.13733487]
[1723994223997,0.145,59932.0,59931.0,0.13833487]
[1723994224356,0.145,59932.0,59931.0,0.1178]
[1723994224602,0.145,59932.0,59931.0,0.13833487]
[1723994225171,0.145,59932.0,59931.0,0.60553687]
[1723994225380,0.00825,59934.0,59933.0,0.116797]
[1723994225573,0.00825,59934.0,59933.0,0.13733187]
[1723994226419,0.00825,59934.0,59933.0,0.60451987]
[1723994226829,0.00925,59934.0,59933.0,0.60451987]
[1723994227899,0.01025,59934.0,59933.0,0.37092587]
[1723994228299,0.00925,59934.0,59933.0,0.37092587]
[1723994228506,0.00825,59934.0,59933.0,0.37292587]
[1723994228723,0.00825,59934.0,59933.0,0.37492587]
[1723994229090,0.00825,59934.0,59933.0,0.37292587]
[1723994229309,0.00825,59934.0,59933.0,0.37292531]
[1723994229458,0.00825,59934.0,59933.0,0.37592531]
[1723994229877,0.00825,59934.0,59933.0,0.60951931]
[1723994232933,0.00825,59934.0,59933.0,0.60951693]
[1723994233194,0.00825,59934.0,59933.0,0.14232893]
[1723994233195,0.15325,59934.0,59933.0,0.14232893]
[1723994237953,0.15325,59934.0,59933.0,0.13732893]
[1723994238426,0.15325,59934.0,59933.0,0.14032893]
[1723994238668,0.15325,59934.0,59933.0,0.13832893]
[1723994238930,0.15425,59934.0,59933.0,0.13732893]
[1723994239189,0.15525,59934.0,59933.0,0.13732893]
[1723994239631,0.15425,59934.0,59933.0,0.13732893]
[1723994240651,0.00925,59934.0,59933.0,0.350391]
[1723994240854,0.00925,59934.0,59933.0,0.4209462]
[1723994242275,0.00925,59934.0,59933.0,0.1873522]
[1723994242478,0.00925,59934.0,59933.0,0.116797]
[1723994242884,0.00925,59934.0,59933.0,0.350391]
[1723994243286,0.00925,59934.0,59933.0,0.583985]
[1723994243910,0.00925,59934.0,59933.0,0.60451139]
[1723994244765,0.00825,59934.0,59933.0,0.583985]
[1723994245044,0.00825,59934.0,59933.0,0.60451391]
[1723994245138,0.00925,59934.0,59933.0,0.37091991]
[1723994245344,0.07045,59934.0,59933.0,0.37091991]
[1723994245574,0.14695,59934.0,59933.0,0.37091991]
[1723994245833,0.14695,59934.0,59933.0,0.37291991]
[1723994246030,0.14695,59934.0,59933.0,0.37192503]
[1723994246314,0.14695,59934.0,59933.0,0.37392503]
[1723994246458,0.14695,59934.0,59933.0,0.37292503]
[1723994246667,0.14695,59934.0,59933.0,0.37192503]
[1723994247902,0.07775068,59934.0,59933.0,0.351391]
[1723994248158,0.07775068,59934.0,59933.0,0.431991]
[1723994248290,0.00825,59934.0,59933.0,0.431991]
[1723994248745,0.0777501,59934.0,59933.0,0.431991]
[1723994248950,0.00825,59934.0,59933.0,0.665585]
[1723994249405,0.00825,59934.0,59933.0,0.431991]
[1723994250534,0.00825,59934.0,59933.0,0.45252682]
[1723994251270,0.00825,59934.0,59933.0,0.50252679]
[1723994253537,0.00825,59934.0,59933.0,0.481991]